Cogmind - Beta 15 @@@ ROGUE MODE // 2025.05.17 @ 14:54:58 Player: dbb Result: Destroyed by G-34 Mercenary with Small Laser Performance ------------- Evolutions (0) 0 Regions Visited (1) 200 Robots Destroyed (24) 120 Value Destroyed (410) 410 Prototype IDs (3) 60 Alien Tech Used (0) 0 Bonus (0) 0 TOTAL SCORE: 790 Bonus ------- None Cogmind --------- Core Integrity 0/250 Matter 101/300 Energy 249/250 System Corruption 4% Temperature Warm (146) Movement Treading (240) Ox1 Location -10/Materials Parts ------- > --- POWER (1) -------- Ion Engine > --- PROPULSION (2) --- Light Treads > --- UTILITY (2) ------ Large Storage Unit Hacking Suite > --- WEAPON (2) ------- Assault Rifle Mining Laser > --- INVENTORY (15) --- Ion Engine Light Ion Engine Flight Unit Large Storage Unit Weight Redist. System Improved Terrain Scanner Seismic Detector Datajack Peak State ------------ > --- POWER ------------ Ion Engine > --- PROPULSION ------- Light Treads Light Treads > --- UTILITY ---------- Large Storage Unit Hacking Suite > --- WEAPON ----------- Assault Rifle Assault Rifle > --- INVENTORY -------- Ion Engine Light Ion Engine Flight Unit Small Storage Unit Large Storage Unit Weight Redist. System Improved Terrain Scanner Seismic Detector Datajack Mining Laser [Rating: 10] Favorites ----------- Power Ion Engine Engine Ion Engine Propulsion Light Treads Treads Light Treads Utility Small Storage Unit Storage Small Storage Unit Hackware Hacking Suite Weapon Assault Rifle Ballistic Gun Assault Rifle Special Weapon Mining Laser Build | -11 -10 ------- Run | Yrd Mat Slots Evolved . | . . Power . | . . Propulsion . | . . Utility . | . . Weapon . | . . Parts Attached 11 | 7 4 Power 1 | 1 . Engine 1 | 1 . Core . | . . Reactor . | . . Propulsion 2 | 2 . Treads 2 | 2 . Leg . | . . Wheel . | . . Hover . | . . Flight . | . . Utility 4 | 2 2 Device . | . . Storage 3 | 2 1 Processor . | . . Hackware 1 | . 1 Protection . | . . Artifact . | . . Weapon 4 | 2 2 Energy Gun . | . . Energy Cannon . | . . Ballistic Gun 3 | 2 1 Ballistic Cannon . | . . Launcher . | . . Special Weapon 1 | . 1 Impact Weapon . | . . Slashing Weapon . | . . Piercing Weapon . | . . Special Melee Weapon . | . . Unidentified Prototypes . | . . Parts Lost 3 | . 3 Power . | . . Propulsion 1 | . 1 Utility . | . . Weapon 2 | . 2 Highest Loss Streak 2 | . 2 To Critical Strikes . | . . Average Backups 7 | 3 8 Power 1 | . 2 Propulsion . | . . Utility 2 | 1 3 Weapon 1 | 1 1 Tool/Special . | . . Unused Backups 8 | . 8 Power 2 | . 2 Propulsion 1 | . 1 Utility 4 | . 4 Weapon . | . . Tool/Special 1 | . 1 Average Slot Usage (%) 99 | . 99 Engine 14 | . 14 Treads 27 | . 27 Storage 27 | . 27 Ballistic Gun 27 | . 27 Peak Build Rating 10 | 7 10 Average Rating 7 | 5 7 On Entrance 3 | . 7 Naked Turns . | . . Heaviest Build 34 | 19 34 Greatest Support 40 | 40 40 Greatest Overweight (x) 1 | 1 . Average Overweight (x) . | . . Largest Inventory Capacity 15 | 8 15 Average Capacity 11 | 6 12 Most Carried 10 | 6 10 Average Carried 7 | 3 8 Final Capacity 15 | 8 15 Final Carried 8 | 6 8 Class Distribution -------------------- 100% | Mutant Dominant Class ---------------- Mutant | -10/Materials Resources | -11 -10 ----------- Run | Yrd Mat Matter Collected 624 | 396 228 Remotely . | . . Salvage Created 696 | 242 454 Parts 51 | 21 30 Haulers Intercepted 1 | . 1 Recyclers Shooed 2 | 1 1 Parts Field Recycled . | . . Retrieved Matter . | . . Parts Self-Destructed . | . . Prevented . | . . Kills | -11 -10 ------- Run | Yrd Mat Combat Hostiles Destroyed 10 | . 10 Guns 9 | . 9 Cannons 1 | . 1 Classes Destroyed 8 | 3 5 Worker 2 | 2 . Tunneler 6 | 6 . Hauler 1 | . 1 Recycler 1 | 1 . Operator 2 | . 2 Watcher 2 | . 2 Swarmer 3 | . 3 Grunt 7 | . 7 Best Kill Streak 5 | 5 3 Combat Bots Only 3 | . 3 Max Kills in Single Turn 1 | 1 1 Gunslinging . | . . Exploded . | . . Melee . | . . Uniques/NPCs Destroyed . | . . Combat | -11 -10 -------- Run | Yrd Mat Hostile Shots Fired 108 | . 108 Missed 31 | . 31 Hits 77 | . 77 Projectile 77 | . 77 Damage Taken 865 | . 865 Core 253 | . 253 Absorbed by Shields . | . . Core Remaining (%) 100 | 100 . Volleys Fired 90 | 21 69 Largest 2 | 2 2 Hottest 120 | 40 120 Shots Fired 179 | 42 137 Gun 176 | 42 134 Cannon . | . . Launcher . | . . Special 3 | . 3 Kinetic 176 | 42 134 Thermal 3 | . 3 Explosive . | . . Electromagnetic . | . . Robot Hit Streak 7 | 7 7 Robot Miss Streak 4 | 2 4 Penetration Max . | . . Secondary Targets 1 | . 1 Max Gunslinging Chain 1 | . 1 Shots Hit Robots 87 | 19 68 Core Hits 36 | 9 27 Critical Kills . | . . Critical Parts Destroyed . | . . Critical Strikes . | . . Melee Attacks . | . . Impact . | . . Slashing . | . . Piercing . | . . Sneak Attacks . | . . Combat Hostiles . | . . Follow-up Attacks . | . . Damage Inflicted 1169 | 265 904 Guns 1145 | 265 880 Cannons . | . . Explosions . | . . Melee . | . . Ramming . | . . Kinetic 1145 | 265 880 Thermal 24 | . 24 Explosive . | . . Electromagnetic . | . . Impact . | . . Slashing . | . . Piercing . | . . Highest Corruption 4 | . 4 Average Corruption 3 | . 3 Corruption Purged . | . . Corruption Blocked . | . . Effects 1 | . 1 Message Errors 1 | . 1 Overload Shots . | . . Overflow Damage . | . . Projectiles . | . . Explosions . | . . Melee . | . . Knockbacks . | . . Impact . | . . Kinetic . | . . Secondary . | . . Self-Inflicted Damage . | . . Shots . | . . Rammed . | . . Targets Rammed . | . . Kicked . | . . Crushed . | . . Highest Temperature 140 | . 140 Average Temperature 31 | . 31 Received Heat Transfer 414 | . 414 Siege Activations . | . . Martial Activations . | . . Shielding Activations . | . . Robots Disrupted . | . . Combat Hostiles . | . . Robots Corrupted . | . . Combat Hostiles . | . . Parts Fried . | . . Impact Corruptions . | . . Robots Melted . | . . Combat Hostiles . | . . Parts Melted . | . . Heat Transferred 50 | . 50 Parts Sabotaged . | . . Parts Stolen . | . . Parts Stripped . | . . Power Chain Reactions . | . . Alert | -11 -10 ------- Run | Yrd Mat Maximum Alert Level . | . . Low Security (%) 100 | 100 100 Level 1 . | . . Level 2 . | . . Level 3 . | . . Level 4 . | . . Level 5 . | . . High Security . | . . Max Security . | . . Peak Influence 75 | 10 75 Initial . | . . Average 17 | 2 21 Influence Increases 326 | 45 281 Destroy 0b10 Robot/C 200 | . 200 Destroy 0b10 Robot/NC 70 | 45 25 Destroy Leader 46 | . 46 Successful Hack 9 | . 9 Destroy Structure 1 | . 1 Influence Decreases 306 | 45 261 Time Decay 295 | 45 250 Lost Part 11 | . 11 Squads Dispatched 3 | . 3 Investigation 1 | . 1 Extermination . | . . Reinforcement 2 | . 2 Assault . | . . Garrison . | . . Intercept . | . . Searches Triggered . | . . Construction Impeded . | . . Haulers Reinforced . | . . Active Scanning Responses . | . . Cargo Convoy Interrupts . | . . Stealth | -11 -10 --------- Run | Yrd Mat Distress Signals . | . . Communications Jammed . | . . Distress Signals . | . . Times Spotted 26 | . 26 Peak Tracking Total 6 | . 6 Tactical Retreats . | . . Traps | -11 -10 ------- Run | Yrd Mat Traps Triggered 2 | . 2 Indirectly . | . . Trap Hack Attempts . | . . Triggered . | . . Disarmed . | . . Reprogrammed . | . . Reused . | . . Traps Extracted . | . . Installed . | . . Triggered . | . . Machines | -11 -10 ---------- Run | Yrd Mat Machines Disabled . | . . Max in Single Turn . | . . Machines Repaired . | . . Machines Dismantled . | . . Machines Sabotaged . | . . Overloaded Fab Kills . | . . Hacking | -11 -10 --------- Run | Yrd Mat Machines Accessed 2 | . 2 Terminals 2 | . 2 Fabricators . | . . Repair Stations . | . . Recycling Units . | . . Scanalyzers . | . . Garrison Access . | . . Total Hacks 8 | . 8 Successful 2 | . 2 Failed 6 | . 6 Catastrophic 1 | . 1 Database Lockouts . | . . Manual 2 | . 2 Terminals 8 | . 8 Fabricators . | . . Repair Stations . | . . Recycling Units . | . . Scanalyzers . | . . Garrison Access . | . . Terminal Hacks 2 | . 2 Prototype ID Bank 2 | . 2 Fabricator Hacks . | . . Repair Station Hacks . | . . Recycling Unit Hacks . | . . Scanalyzer . | . . Garrison Access Hacks . | . . Unauthorized Hacks . | . . Terminals . | . . Fabricators . | . . Repair Stations . | . . Recycling Units . | . . Scanalyzers . | . . Garrison Access . | . . Data Cores Recovered . | . . Used . | . . Hacking Detections 2 | . 2 Full Trace Events 2 | . 2 Feedback Events . | . . Feedback Blocked . | . . Robot Schematics Acquired . | . . Robots Built . | . . Authchips . | . . Time . | . . Total Robot Build Rating . | . . Part Schematics Acquired . | . . Parts Built . | . . Authchips . | . . Time . | . . Total Part Build Rating . | . . Parts Repaired . | . . Time . | . . Parts Recycled . | . . Recycled Matter . | . . Retrieved Matter . | . . Retrieved Components . | . . Parts Scanalyzed . | . . Part Schematics Acquired . | . . Parts Damaged . | . . Bothacking | -11 -10 ------------ Run | Yrd Mat Used RIF Installer . | . . Robots Hacked . | . . Non-combat . | . . Combat . | . . Robot Hacks Applied . | . . Relay Couplers Released . | . . Fabnet Peak Effective % . | . . Robots Rewired . | . . Allies Hacked . | . . Hacks Repelled . | . . Allies | -11 -10 -------- Run | Yrd Mat Total Allies . | . . Largest Group . | . . Highest-Rated Group . | . . Highest-Rated Ally . | . . Total Orders . | . . Ally Attacks . | . . Total Damage . | . . Kills . | . . Allies Corrupted . | . . Allies Melted . | . . Intel | -11 -10 ------- Run | Yrd Mat Active Infowar (turns) . | . . Robot Analysis Total . | . . Derelict Logs Recovered . | . . Drone Launches . | . . Drone Recoveries . | . . Exploration | -11 -10 ------------- Run | Yrd Mat Turns Passed 1038 | 229 809 Spaces Moved 470 | 104 366 Core 19 | 19 . Treads 451 | 85 366 Legs . | . . Wheels . | . . Hover . | . . Flight . | . . Fastest Speed 50 | 50 160 Average Speed 155 | 140 160 Slowest Speed 160 | 160 160 Overloaded Moves . | . . Propulsion Burnouts . | . . Robots Hopped . | . . Potential Cave-ins . | . . Cave-ins Triggered . | . . Exploration Rate (%) 28 | 7 50 Regions Visited 1 Branch Regions . Pre-discovered Areas . | . . Known Exits Taken . | . . Unknown Exits Taken 1 | 1 . Scrap Searched . | . . Spaces Dug . | . . Terrain Destroyed 1 | . 1 Melee . | . . Projectile 1 | . 1 AOE . | . . Terrain Rammed . | . . Walls Destroyed . | . . Machines Disabled . | . . Actions | -11 -10 --------- Run | Yrd Mat Total 592 | 145 447 Wait 1 | . 1 Move 469 | 103 366 Hop . | . . Pick Up 18 | 13 5 Fast Attach 1 | 1 . Attach 8 | 6 2 Detach . | . . Swap 2 | . 2 Drop 3 | 1 2 Fire 90 | 21 69 Melee . | . . Ram . | . . Kick . | . . Crush . | . . Escape Stasis . | . . Rewire . | . . Trap . | . . Miscellaneous . | . . Route ------- -11/Scrapyard -10/Materials (discovered 4 exits: [*Mat x3] / [*Sub]) History --------- Turn | Location | Event 8 | -11/Scrapyard | Discovered new exit (range 15) 230 | -11/Scrapyard | Entered Materials 307 | -10/Materials | Build established: Mutant 676 | -10/Materials | Discovered new exit (range 5) 832 | -10/Materials | Discovered new exit (range 13) 976 | -10/Materials | Discovered new exit (range 15) 1001 | -10/Materials | Discovered new exit (range 16) 1011 | -10/Materials | Core integrity fell below 50% 1033 | -10/Materials | Core integrity fell below 20% 1039 | -10/Materials | Destroyed by G-34 Mercenary with Small Laser Last Messages --------------- R-06 Scavenger collects Hover Unit. K-01 Serf collects debris. U-05 Engineer lays Concrete. K-01 Serf collects debris. Connecting with Terminal... K-01 Serf collects debris. Dropped Sml. Storage Unit. Connecting with Terminal... >>Prototypes Downloading prototype IDs... Imp. EM Shotgun Adv. Beam Cannon ALERT: Suspicious activity at Terminal M008. Dispatching Investigation squad. SR9F5GYJDEQX3B2E#FG/D,:GT R-06 Scavenger collects Sml. Storage Unit. EXIT=FOUND Assault Rifle destroyed. Lgt. Treads destroyed. G-34 Mercenary destroyed. Map ----- +----------------------------------------------------+ | #?????????????????????????# #??????????????????? | | ###########???????????????# #??????????????????? | | # #??????????????## %##?????????????????? | | # """ """ #??????????????# ###+#########?????? | | # """ """ #??????????????# ????? | | + """ """ #??????????????# T < ????? | | # #??????????????# ????? | | # #??????????????# ########## #?????? | | # #??????????????## ##?????????????????? | | # #???????????????# #??????????????????? | | ###########???????????????# #??????????????????? | | #?????????????????????????# ##?????????????????? | | #?????????????????????????# T#?????????????????? | | #?????????????????????????# ##?????????????????? | | #?????????????????????????# #??????????????????? | | #?????????????????????????# #??????????????????? | | #?????????????????????????# #??????????????????? | | #?????????????????????????# #??????????????????? | | #?????????????????????????# #??????????????????? | | #?????????????????????????# #??????????????????? | | ??????????????????????????# #??????????????????? | | ???????????????????######## #??????????????????? | | ???????????????????#= # #??????????????????? | | ???????????????????# # #??????????????????? | | ???????????????????# """=ggg +??????????????????? | | ???????????????????# """@%g #??????????????????? | | ???????????????????# """ # #??????????????????? | | ???????????????????# # ???????????????? | | ???????????????????######## ????????????? | | ??????????????????????????# ########???????????? | | ??????????????????????????# #??????????????????? | | ??????????????????????????+ #??????????????????? | | ??????????????????????????# #??????????????????? | | ??????????????????????????? < #??????????????????? | | ??????????????????????????? #??????????????????? | | ???????????????????????????####??????????????????? | | ?????????????????????????????????????????????????? | | ?????????????????????????????????????????????????? | | ?????????????????????????????????????????????????? | | ?????????????????????????????????????????????????? | | ?????????????????????????????????????????????????? | | ?????????????????????????????????????????????????? | | ?????????????????????????????????????????????????? | | | | | | | | | | | | | | | +----------------------------------------------------+ Best States ------------- Heat Dissipation 25 Energy Generation 10 Energy Capacity 250 Matter Stores 300 Matter Capacity 300 Sight Range 16 Terrain Scan Density 10 Evasion (%) 50 Recoil Reduction 2 Offensive Hacking 10 Item Schematics ----------------- None Robot Schematics ------------------ None Fabricated ------------ Nothing Repaired ---------- Nothing Alien Tech Used ----------------- None Achievements -------------- None Challenges ------------ None Game ------ Seed MassVisualCanceller Manual? 0 Play Time 00:11:42 Cumulative 33.2 hours Start 2025.05.17 @ 14:46:06 End 2025.05.17 @ 14:54:58 Sessions 1 Manual Loads 0 Difficulty Rogue Special Mode None Game No. 4 Rogue 1 Adventurer 3 Explorer 0 Win Type - Total 2 Types 1/0/0/1/0/0/0/0/0/0 Lore% 14 Gallery% 21 Achievement% 33 Wizard Run 0 Options --------- Layout 1 ASCII 0 Keyboard 0 Movement Mouse Keybinds 0 Fullscreen 2 Font 32/SmallcapsGlow Map View 50x40 Zoom Use 0% Tactical HUD 0 Map Filters NONE Filters NONE Steam 0 RUN: 891a5f08-1780-45cd-82db-b114ac9a402f